[Event "Titled Tuesday Blitz April 19 Late 2022"]
[White "Jimenez Fernandez, Rebeca"]
[Black "Araujo Filho, Luiz Antonio Coel"]
[WhiteFideId "32070934"]
[BlackFideId "2130661"]
[WhiteElo "1853"]
[BlackElo "2311"]
[Result "0-1"]
[Round "07"]
[TimeControl "180+1"]
[Date "2022.04.19"]
[WhiteClock "0:01:31"]
[BlackClock "0:01:24"]

1. e4 {[%clk 0:03:00]}  c6 {[%clk 0:02:57]} 2. d4 {[%clk 0:03:00]}  d5 {[%clk 0:02:57]} 3. Nc3 {[%clk 0:03:01]}  dxe4 {[%clk 0:02:57]} 4. Nxe4 {[%clk 0:03:02]}  Nf6 {[%clk 0:02:58]} 5. Nxf6+ {[%clk 0:03:01]}  exf6 {[%clk 0:02:58]} 6. c3 {[%clk 0:03:01]}  Bd6 {[%clk 0:02:59]} 7. Bd3 {[%clk 0:03:02]}  O-O {[%clk 0:02:59]} 8. Qc2 {[%clk 0:03:02]}  Re8+ {[%clk 0:02:58]} 9. Ne2 {[%clk 0:03:02]}  h6 {[%clk 0:02:58]} 10. Be3 {[%clk 0:02:56]}  Nd7 {[%clk 0:02:57]} 11. O-O-O {[%clk 0:02:56]}  Nf8 {[%clk 0:02:57]} 12. c4 {[%clk 0:02:48]}  b6 {[%clk 0:02:55]} 13. Nc3 {[%clk 0:02:42]}  Qc7 {[%clk 0:02:51]} 14. c5 {[%clk 0:02:37]}  bxc5 {[%clk 0:02:49]} 15. dxc5 {[%clk 0:02:37]}  Be5 {[%clk 0:02:47]} 16. Ne4 {[%clk 0:02:32]}  Rb8 {[%clk 0:02:44]} 17. b3 {[%clk 0:02:32]}  Be6 {[%clk 0:02:35]} 18. Nd6 {[%clk 0:02:31]}  Red8 {[%clk 0:02:29]} 19. Bc4 {[%clk 0:02:14]}  Qa5 {[%clk 0:02:21]} 20. f4 {[%clk 0:01:49]}  Bxd6 {[%clk 0:01:59]} 21. Rxd6 {[%clk 0:01:41]}  Qa3+ {[%clk 0:01:40]} 22. Kb1 {[%clk 0:01:40]}  Rxd6 {[%clk 0:01:38]} 23. cxd6 {[%clk 0:01:39]}  Rb4 {[%clk 0:01:35]} 24. Rd1 {[%clk 0:01:30]}  Bxc4 {[%clk 0:01:31]} 25. Qxc4 {[%clk 0:01:31]}  Rxc4 {[%clk 0:01:31]} 26. bxc4 {[%clk 0:01:31]}  Qxe3 {[%clk 0:01:29]} 27. d7 {[%clk 0:01:30]}  Nxd7 {[%clk 0:01:25]} 28. Rxd7 {[%clk 0:01:31]}  Qxf4 {[%clk 0:01:24]} 0-1


[Site "https://www.chess.com"]

[Event "Titled Tuesday Blitz April 19 Late 2022"]
[White "Jobava, Baadur"]
[Black "Bacrot, Etienne"]
[WhiteFideId "13601520"]
[BlackFideId "605506"]
[WhiteElo "2617"]
[BlackElo "2673"]
[Result "0-1"]
[Round "07"]
[TimeControl "180+1"]
[Date "2022.04.19"]
[WhiteClock "0:00:15"]
[BlackClock "0:00:17"]

1. e4 {[%clk 0:03:00]}  c5 {[%clk 0:02:59]} 2. Nf3 {[%clk 0:03:00]}  d6 {[%clk 0:02:59]} 3. d4 {[%clk 0:03:01]}  cxd4 {[%clk 0:02:59]} 4. Nxd4 {[%clk 0:03:02]}  Nf6 {[%clk 0:02:59]} 5. f3 {[%clk 0:03:02]}  Nc6 {[%clk 0:02:57]} 6. c4 {[%clk 0:02:59]}  e6 {[%clk 0:02:57]} 7. Nc3 {[%clk 0:02:59]}  Be7 {[%clk 0:02:57]} 8. Be3 {[%clk 0:02:59]}  O-O {[%clk 0:02:58]} 9. Qd2 {[%clk 0:02:58]}  d5 {[%clk 0:02:58]} 10. exd5 {[%clk 0:02:54]}  exd5 {[%clk 0:02:58]} 11. O-O-O {[%clk 0:02:54]}  Ne5 {[%clk 0:02:37]} 12. Qc2 {[%clk 0:01:56]}  dxc4 {[%clk 0:02:17]} 13. Nc6 {[%clk 0:01:51]}  bxc6 {[%clk 0:02:11]} 14. Rxd8 {[%clk 0:01:51]}  Rxd8 {[%clk 0:02:12]} 15. Kb1 {[%clk 0:01:48]}  Nd3 {[%clk 0:02:08]} 16. g4 {[%clk 0:01:37]}  Rb8 {[%clk 0:02:06]} 17. Na4 {[%clk 0:01:35]}  Nd5 {[%clk 0:01:50]} 18. Bxa7 {[%clk 0:01:32]}  Rb7 {[%clk 0:01:48]} 19. Bd4 {[%clk 0:01:20]}  N5b4 {[%clk 0:01:24]} 20. Qc3 {[%clk 0:01:20]}  Be6 {[%clk 0:01:24]} 21. Bxd3 {[%clk 0:01:13]}  cxd3 {[%clk 0:01:21]} 22. b3 {[%clk 0:01:13]}  Nxa2 {[%clk 0:01:14]} 23. Qxc6 {[%clk 0:00:56]}  Rxb3+ {[%clk 0:00:57]} 24. Bb2 {[%clk 0:00:56]}  Bf6 {[%clk 0:00:38]} 25. Ka1 {[%clk 0:00:35]}  Nb4 {[%clk 0:00:31]} 26. Qe4 {[%clk 0:00:19]}  Nc2+ {[%clk 0:00:28]} 27. Kb1 {[%clk 0:00:19]}  Rdb8 {[%clk 0:00:26]} 28. Kc1 {[%clk 0:00:17]}  Bxb2+ {[%clk 0:00:25]} 29. Nxb2 {[%clk 0:00:18]}  Rxb2 {[%clk 0:00:25]} 30. Rd1 {[%clk 0:00:17]}  Rb1+ {[%clk 0:00:24]} 31. Kd2 {[%clk 0:00:18]}  Rxd1+ {[%clk 0:00:24]} 32. Kxd1 {[%clk 0:00:18]}  Rd8 {[%clk 0:00:21]} 33. Kd2 {[%clk 0:00:19]}  h6 {[%clk 0:00:21]} 34. h3 {[%clk 0:00:19]}  Nd4 {[%clk 0:00:19]} 35. f4 {[%clk 0:00:18]}  Nb3+ {[%clk 0:00:19]} 36. Kd1 {[%clk 0:00:19]}  d2 {[%clk 0:00:19]} 37. f5 {[%clk 0:00:19]}  Bd5 {[%clk 0:00:18]} 38. Qe5 {[%clk 0:00:17]}  Rc8 {[%clk 0:00:17]} 39. Ke2 {[%clk 0:00:15]}  Bf3+ {[%clk 0:00:17]} 0-1


[Site "https://www.chess.com"]

[Event "Titled Tuesday Blitz April 19 Late 2022"]
[White "Joubert, Dantelle"]
[Black "Karwowski, Kacper"]
[WhiteFideId "14310813"]
[BlackFideId "1126032"]
[WhiteElo "1507"]
[BlackElo "2261"]
[Result "0-1"]
[Round "07"]
[TimeControl "180+1"]
[Date "2022.04.19"]
[WhiteClock "0:00:01"]
[BlackClock "0:00:09"]

1. Nf3 {[%clk 0:03:00]}  Nf6 {[%clk 0:02:59]} 2. c4 {[%clk 0:03:00]}  c6 {[%clk 0:02:58]} 3. d4 {[%clk 0:02:59]}  d5 {[%clk 0:02:58]} 4. cxd5 {[%clk 0:02:56]}  cxd5 {[%clk 0:02:58]} 5. Nc3 {[%clk 0:02:57]}  Nc6 {[%clk 0:02:57]} 6. Bf4 {[%clk 0:02:57]}  e6 {[%clk 0:02:48]} 7. e3 {[%clk 0:02:56]}  Bd6 {[%clk 0:02:46]} 8. Bg3 {[%clk 0:02:56]}  O-O {[%clk 0:02:44]} 9. Bd3 {[%clk 0:02:55]}  b6 {[%clk 0:02:42]} 10. Rc1 {[%clk 0:02:51]}  Bb7 {[%clk 0:02:34]} 11. O-O {[%clk 0:02:47]}  Bxg3 {[%clk 0:02:27]} 12. hxg3 {[%clk 0:02:46]}  Qd6 {[%clk 0:02:08]} 13. a3 {[%clk 0:02:41]}  Na5 {[%clk 0:02:04]} 14. Nb5 {[%clk 0:02:37]}  Qd8 {[%clk 0:01:50]} 15. Ne5 {[%clk 0:02:27]}  a6 {[%clk 0:01:16]} 16. Nc7 {[%clk 0:02:06]}  Ra7 {[%clk 0:01:16]} 17. Qe2 {[%clk 0:01:08]}  b5 {[%clk 0:01:06]} 18. Nxb5 {[%clk 0:00:40]}  axb5 {[%clk 0:01:05]} 19. Bxb5 {[%clk 0:00:40]}  Qb6 {[%clk 0:00:55]} 20. b4 {[%clk 0:00:26]}  Nc4 {[%clk 0:00:46]} 21. Bxc4 {[%clk 0:00:24]}  dxc4 {[%clk 0:00:45]} 22. g4 {[%clk 0:00:07]}  Ba6 {[%clk 0:00:39]} 23. Rfd1 {[%clk 0:00:06]}  Bb5 {[%clk 0:00:28]} 24. Qb2 {[%clk 0:00:03]}  Rfa8 {[%clk 0:00:23]} 25. g5 {[%clk 0:00:01]}  Ne8 {[%clk 0:00:09]} 0-1


[Site "https://www.chess.com"]

[Event "Titled Tuesday Blitz April 19 Late 2022"]
[White "Kozak, Adam"]
[Black "Gledura, Benjamin"]
[WhiteFideId "753246"]
[BlackFideId "712779"]
[WhiteElo "2459"]
[BlackElo "2326"]
[Result "0-1"]
[Round "07"]
[TimeControl "180+1"]
[Date "2022.04.19"]
[WhiteClock "0:00:01"]
[BlackClock "0:00:09"]

1. Nf3 {[%clk 0:03:00]}  d5 {[%clk 0:02:57]} 2. b3 {[%clk 0:03:01]}  c5 {[%clk 0:02:57]} 3. Bb2 {[%clk 0:03:01]}  f6 {[%clk 0:02:58]} 4. g3 {[%clk 0:02:56]}  e5 {[%clk 0:02:57]} 5. Bg2 {[%clk 0:02:57]}  Nc6 {[%clk 0:02:57]} 6. O-O {[%clk 0:02:56]}  Be6 {[%clk 0:02:58]} 7. a3 {[%clk 0:02:52]}  Bd6 {[%clk 0:02:57]} 8. b4 {[%clk 0:02:51]}  cxb4 {[%clk 0:02:53]} 9. axb4 {[%clk 0:02:51]}  Bxb4 {[%clk 0:02:54]} 10. d4 {[%clk 0:02:49]}  e4 {[%clk 0:02:53]} 11. Nfd2 {[%clk 0:02:50]}  Nge7 {[%clk 0:02:52]} 12. c4 {[%clk 0:02:50]}  f5 {[%clk 0:02:51]} 13. Nc3 {[%clk 0:02:43]}  O-O {[%clk 0:02:49]} 14. c5 {[%clk 0:02:35]}  Nxd4 {[%clk 0:02:40]} 15. Na4 {[%clk 0:01:59]}  Ndc6 {[%clk 0:02:38]} 16. Nb3 {[%clk 0:01:59]}  d4 {[%clk 0:02:27]} 17. Nxd4 {[%clk 0:01:57]}  Nxd4 {[%clk 0:02:27]} 18. Bxd4 {[%clk 0:01:57]}  Nc6 {[%clk 0:02:27]} 19. e3 {[%clk 0:01:57]}  Nxd4 {[%clk 0:02:24]} 20. exd4 {[%clk 0:01:57]}  Bd5 {[%clk 0:02:21]} 21. Qc2 {[%clk 0:01:49]}  b5 {[%clk 0:02:18]} 22. Rfb1 {[%clk 0:01:34]}  a5 {[%clk 0:02:07]} 23. Nb6 {[%clk 0:01:33]}  Rb8 {[%clk 0:02:07]} 24. Rc1 {[%clk 0:01:10]}  Kh8 {[%clk 0:02:05]} 25. Bf1 {[%clk 0:01:06]}  Rxb6 {[%clk 0:01:44]} 26. cxb6 {[%clk 0:01:07]}  Qxb6 {[%clk 0:01:44]} 27. Qc7 {[%clk 0:01:04]}  Qxd4 {[%clk 0:01:19]} 28. Rd1 {[%clk 0:00:47]}  Qf6 {[%clk 0:01:19]} 29. Bxb5 {[%clk 0:00:36]}  Bb3 {[%clk 0:01:13]} 30. Rf1 {[%clk 0:00:28]}  h6 {[%clk 0:01:08]} 31. Rac1 {[%clk 0:00:25]}  Qg5 {[%clk 0:01:06]} 32. Bc4 {[%clk 0:00:22]}  Bxc4 {[%clk 0:01:00]} 33. Qxc4 {[%clk 0:00:23]}  e3 {[%clk 0:00:57]} 34. fxe3 {[%clk 0:00:21]}  Qxe3+ {[%clk 0:00:57]} 35. Kg2 {[%clk 0:00:21]}  Rd8 {[%clk 0:00:54]} 36. Rxf5 {[%clk 0:00:18]}  Rd4 {[%clk 0:00:41]} 37. Qc6 {[%clk 0:00:09]}  Rd2+ {[%clk 0:00:23]} 38. Kh3 {[%clk 0:00:09]}  Qe2 {[%clk 0:00:19]} 39. Rcf1 {[%clk 0:00:04]}  Qxh2+ {[%clk 0:00:18]} 40. Kg4 {[%clk 0:00:04]}  Qe2+ {[%clk 0:00:18]} 41. Kh3 {[%clk 0:00:03]}  Qh2+ {[%clk 0:00:17]} 42. Kg4 {[%clk 0:00:03]}  Rd4+ {[%clk 0:00:17]} 43. R5f4 {[%clk 0:00:03]}  h5+ {[%clk 0:00:13]} 44. Kf5 {[%clk 0:00:02]}  Rd6 {[%clk 0:00:09]} 45. Qe8+ {[%clk 0:00:01]}  Kh7 {[%clk 0:00:09]} 46. Rh4 {[%clk 0:00:01]}  Rf6+ {[%clk 0:00:09]} 47. Kg5 {[%clk 0:00:01]}  Qxg3+ {[%clk 0:00:09]} 48. Kxh5 {[%clk 0:00:01]}  Rh6# {[%clk 0:00:09]} 0-1


[Site "https://www.chess.com"]

[Event "Titled Tuesday Blitz April 19 Late 2022"]
[White "Lehtosaari, Mauri"]
[Black "Vujic, Mihailo"]
[WhiteFideId "501999"]
[BlackFideId "918873"]
[WhiteElo "2458"]
[BlackElo "2256"]
[Result "0-1"]
[Round "07"]
[TimeControl "180+1"]
[Date "2022.04.19"]
[WhiteClock "0:00:02"]
[BlackClock "0:00:18"]

1. d4 {[%clk 0:03:00]}  d5 {[%clk 0:02:59]} 2. Nf3 {[%clk 0:03:01]}  Nc6 {[%clk 0:02:58]} 3. Bg5 {[%clk 0:03:01]}  Bg4 {[%clk 0:02:56]} 4. Nbd2 {[%clk 0:03:01]}  f6 {[%clk 0:02:54]} 5. Bh4 {[%clk 0:03:01]}  Nh6 {[%clk 0:02:53]} 6. c3 {[%clk 0:02:51]}  Qd7 {[%clk 0:02:51]} 7. e3 {[%clk 0:02:36]}  Nf5 {[%clk 0:02:47]} 8. Bg3 {[%clk 0:02:36]}  Nxg3 {[%clk 0:02:47]} 9. hxg3 {[%clk 0:02:36]}  e5 {[%clk 0:02:47]} 10. Qa4 {[%clk 0:02:26]}  e4 {[%clk 0:02:32]} 11. Ng1 {[%clk 0:02:21]}  Qd6 {[%clk 0:02:23]} 12. Bb5 {[%clk 0:02:14]}  Bd7 {[%clk 0:02:22]} 13. Qd1 {[%clk 0:02:01]}  O-O-O {[%clk 0:02:19]} 14. a4 {[%clk 0:01:52]}  Ne7 {[%clk 0:02:09]} 15. Bxd7+ {[%clk 0:01:46]}  Qxd7 {[%clk 0:02:09]} 16. Ne2 {[%clk 0:01:43]}  h5 {[%clk 0:02:08]} 17. a5 {[%clk 0:01:38]}  a6 {[%clk 0:02:07]} 18. c4 {[%clk 0:01:33]}  Re8 {[%clk 0:02:01]} 19. Nc3 {[%clk 0:01:29]}  g6 {[%clk 0:01:36]} 20. Qb3 {[%clk 0:01:26]}  c6 {[%clk 0:01:31]} 21. cxd5 {[%clk 0:01:20]}  Nxd5 {[%clk 0:01:30]} 22. Nc4 {[%clk 0:00:42]}  Kb8 {[%clk 0:01:12]} 23. Nb6 {[%clk 0:00:33]}  Nxb6 {[%clk 0:01:09]} 24. Qxb6 {[%clk 0:00:34]}  Bd6 {[%clk 0:01:05]} 25. Na4 {[%clk 0:00:30]}  Qf5 {[%clk 0:00:42]} 26. Nc5 {[%clk 0:00:17]}  Bxc5 {[%clk 0:00:40]} 27. dxc5 {[%clk 0:00:18]}  Rd8 {[%clk 0:00:31]} 28. Qb4 {[%clk 0:00:16]}  Rd5 {[%clk 0:00:27]} 29. Rc1 {[%clk 0:00:14]}  Rhd8 {[%clk 0:00:26]} 30. O-O {[%clk 0:00:14]}  h4 {[%clk 0:00:24]} 31. gxh4 {[%clk 0:00:10]}  Qg4 {[%clk 0:00:24]} 32. g3 {[%clk 0:00:07]}  g5 {[%clk 0:00:23]} 33. Rc4 {[%clk 0:00:06]}  f5 {[%clk 0:00:22]} 34. Qc3 {[%clk 0:00:06]}  gxh4 {[%clk 0:00:21]} 35. Qf6 {[%clk 0:00:02]}  hxg3 {[%clk 0:00:18]} 0-1


[Site "https://www.chess.com"]

[Event "Titled Tuesday Blitz April 19 Late 2022"]
[White "Leiva, Gianmarco"]
[Black "Spata, German"]
[WhiteFideId "3804399"]
[BlackFideId "113026"]
[WhiteElo "2323"]
[BlackElo "2238"]
[Result "1-0"]
[Round "07"]
[TimeControl "180+1"]
[Date "2022.04.19"]
[WhiteClock "0:00:53"]
[BlackClock "0:00:11"]

1. e4 {[%clk 0:03:00]}  d6 {[%clk 0:02:55]} 2. Nf3 {[%clk 0:02:57]}  g6 {[%clk 0:02:53]} 3. d4 {[%clk 0:02:56]}  Bg7 {[%clk 0:02:53]} 4. c3 {[%clk 0:02:57]}  c6 {[%clk 0:02:52]} 5. Bd3 {[%clk 0:02:55]}  Qc7 {[%clk 0:02:46]} 6. O-O {[%clk 0:02:55]}  Nd7 {[%clk 0:02:46]} 7. a4 {[%clk 0:02:54]}  a5 {[%clk 0:02:44]} 8. Nbd2 {[%clk 0:02:51]}  Ngf6 {[%clk 0:02:44]} 9. Re1 {[%clk 0:02:50]}  e5 {[%clk 0:02:44]} 10. dxe5 {[%clk 0:02:50]}  Nxe5 {[%clk 0:02:43]} 11. Nxe5 {[%clk 0:02:49]}  dxe5 {[%clk 0:02:44]} 12. Nc4 {[%clk 0:02:49]}  O-O {[%clk 0:02:42]} 13. Be3 {[%clk 0:02:50]}  Nd7 {[%clk 0:02:27]} 14. Bc2 {[%clk 0:02:45]}  b6 {[%clk 0:02:22]} 15. Qd6 {[%clk 0:02:45]}  Qxd6 {[%clk 0:02:15]} 16. Nxd6 {[%clk 0:02:45]}  Ba6 {[%clk 0:02:11]} 17. Rad1 {[%clk 0:02:42]}  Nc5 {[%clk 0:02:00]} 18. Bxc5 {[%clk 0:02:40]}  bxc5 {[%clk 0:02:00]} 19. Bd3 {[%clk 0:02:41]}  Rfd8 {[%clk 0:01:33]} 20. Bxa6 {[%clk 0:02:38]}  Rxa6 {[%clk 0:01:33]} 21. Nc4 {[%clk 0:02:38]}  Raa8 {[%clk 0:01:23]} 22. Kf1 {[%clk 0:02:38]}  f6 {[%clk 0:01:18]} 23. Ke2 {[%clk 0:02:37]}  Bf8 {[%clk 0:01:14]} 24. Rxd8 {[%clk 0:02:35]}  Rxd8 {[%clk 0:01:14]} 25. Rd1 {[%clk 0:02:36]}  Be7 {[%clk 0:00:57]} 26. Nxa5 {[%clk 0:02:31]}  Ra8 {[%clk 0:00:51]} 27. Nxc6 {[%clk 0:02:31]}  Bf8 {[%clk 0:00:49]} 28. a5 {[%clk 0:01:03]}  Ra6 {[%clk 0:00:44]} 29. Kd3 {[%clk 0:01:03]}  Rxc6 {[%clk 0:00:41]} 30. Kc4 {[%clk 0:01:04]}  Rc8 {[%clk 0:00:32]} 31. a6 {[%clk 0:01:02]}  Ra8 {[%clk 0:00:17]} 32. Kb5 {[%clk 0:00:52]}  Rb8+ {[%clk 0:00:16]} 33. Kc6 {[%clk 0:00:53]}  Rxb2 {[%clk 0:00:11]} 34. Ra1 {[%clk 0:00:53]} 1-0


[Site "https://www.chess.com"]

[Event "Titled Tuesday Blitz April 19 Late 2022"]
[White "Lin, Dachey"]
[Black "Dobrov, Vladimir"]
[WhiteFideId "2029650"]
[BlackFideId "4136594"]
[WhiteElo "2313"]
[BlackElo "2575"]
[Result "0-1"]
[Round "07"]
[TimeControl "180+1"]
[Date "2022.04.19"]
[WhiteClock "0:00:47"]
[BlackClock "0:01:35"]

1. Nc3 {[%clk 0:03:00]}  d5 {[%clk 0:02:57]} 2. e4 {[%clk 0:03:01]}  c6 {[%clk 0:02:55]} 3. Nf3 {[%clk 0:03:01]}  Bg4 {[%clk 0:02:54]} 4. h3 {[%clk 0:03:02]}  Bxf3 {[%clk 0:02:55]} 5. Qxf3 {[%clk 0:03:03]}  e6 {[%clk 0:02:55]} 6. d3 {[%clk 0:03:03]}  Nd7 {[%clk 0:02:54]} 7. Bd2 {[%clk 0:03:04]}  Ne7 {[%clk 0:02:47]} 8. g4 {[%clk 0:03:04]}  Ng6 {[%clk 0:02:47]} 9. Qg3 {[%clk 0:03:02]}  Bb4 {[%clk 0:02:42]} 10. O-O-O {[%clk 0:02:58]}  d4 {[%clk 0:02:28]} 11. Ne2 {[%clk 0:02:54]}  Bxd2+ {[%clk 0:02:28]} 12. Rxd2 {[%clk 0:02:55]}  Qa5 {[%clk 0:02:22]} 13. a3 {[%clk 0:02:55]}  e5 {[%clk 0:02:16]} 14. h4 {[%clk 0:02:53]}  b5 {[%clk 0:02:01]} 15. h5 {[%clk 0:02:45]}  Ngf8 {[%clk 0:01:59]} 16. f4 {[%clk 0:02:05]}  b4 {[%clk 0:01:57]} 17. fxe5 {[%clk 0:02:00]}  bxa3 {[%clk 0:01:57]} 18. bxa3 {[%clk 0:02:01]}  Qxa3+ {[%clk 0:01:54]} 19. Kd1 {[%clk 0:02:01]}  Rb8 {[%clk 0:01:53]} 20. Ke1 {[%clk 0:01:58]}  Qa5 {[%clk 0:01:47]} 21. Nxd4 {[%clk 0:01:51]}  Qa1+ {[%clk 0:01:46]} 22. Ke2 {[%clk 0:01:23]}  Qxd4 {[%clk 0:01:47]} 23. h6 {[%clk 0:00:58]}  g6 {[%clk 0:01:45]} 24. g5 {[%clk 0:00:56]}  Ne6 {[%clk 0:01:44]} 25. Bh3 {[%clk 0:00:56]}  Qxe5 {[%clk 0:01:44]} 26. Qe3 {[%clk 0:00:53]}  Nf4+ {[%clk 0:01:44]} 27. Kf3 {[%clk 0:00:53]}  Nxh3 {[%clk 0:01:43]} 28. Rxh3 {[%clk 0:00:54]}  c5 {[%clk 0:01:41]} 29. c3 {[%clk 0:00:53]}  Qxc3 {[%clk 0:01:41]} 30. e5 {[%clk 0:00:50]}  O-O {[%clk 0:01:38]} 31. Re2 {[%clk 0:00:47]}  Rbe8 {[%clk 0:01:36]} 32. Kf4 {[%clk 0:00:47]}  Nxe5 {[%clk 0:01:35]} 0-1


[Site "https://www.chess.com"]

[Event "Titled Tuesday Blitz April 19 Late 2022"]
[White "Lock, Gavin R"]
[Black "Bas Mas, Jose Joaquin"]
[WhiteFideId "408646"]
[BlackFideId "22219064"]
[WhiteElo "2104"]
[BlackElo "2212"]
[Result "1-0"]
[Round "07"]
[TimeControl "180+1"]
[Date "2022.04.19"]
[WhiteClock "0:00:02"]
[BlackClock "0:00:03"]

1. d4 {[%clk 0:03:00]}  f5 {[%clk 0:02:59]} 2. Nc3 {[%clk 0:02:51]}  Nf6 {[%clk 0:02:56]} 3. Bf4 {[%clk 0:02:52]}  d5 {[%clk 0:02:52]} 4. Nb5 {[%clk 0:02:46]}  Na6 {[%clk 0:02:51]} 5. e3 {[%clk 0:02:46]}  c6 {[%clk 0:02:50]} 6. Nc3 {[%clk 0:02:46]}  Nc7 {[%clk 0:02:45]} 7. Nf3 {[%clk 0:02:46]}  Ne6 {[%clk 0:02:44]} 8. Be5 {[%clk 0:02:44]}  Nd7 {[%clk 0:02:44]} 9. Bg3 {[%clk 0:02:44]}  g6 {[%clk 0:02:39]} 10. Bd3 {[%clk 0:02:38]}  Bg7 {[%clk 0:02:39]} 11. Ne2 {[%clk 0:02:38]}  O-O {[%clk 0:02:37]} 12. O-O {[%clk 0:02:21]}  Nf6 {[%clk 0:02:32]} 13. c4 {[%clk 0:02:19]}  Ne4 {[%clk 0:02:31]} 14. b4 {[%clk 0:02:01]}  Nxg3 {[%clk 0:01:59]} 15. hxg3 {[%clk 0:02:01]}  Nc7 {[%clk 0:01:57]} 16. Rb1 {[%clk 0:01:55]}  Be6 {[%clk 0:01:55]} 17. Qc2 {[%clk 0:01:55]}  h6 {[%clk 0:01:52]} 18. Rfc1 {[%clk 0:01:49]}  Bf7 {[%clk 0:01:49]} 19. a4 {[%clk 0:01:48]}  dxc4 {[%clk 0:01:37]} 20. Bxc4 {[%clk 0:01:47]}  Nd5 {[%clk 0:01:38]} 21. b5 {[%clk 0:01:39]}  Qa5 {[%clk 0:01:28]} 22. bxc6 {[%clk 0:01:32]}  bxc6 {[%clk 0:01:26]} 23. Rb7 {[%clk 0:01:23]}  Rab8 {[%clk 0:01:12]} 24. Rcb1 {[%clk 0:01:18]}  Rxb7 {[%clk 0:00:42]} 25. Rxb7 {[%clk 0:01:19]}  Bf6 {[%clk 0:00:42]} 26. Nf4 {[%clk 0:00:55]}  Nxf4 {[%clk 0:00:31]} 27. gxf4 {[%clk 0:00:48]}  Rc8 {[%clk 0:00:19]} 28. Bxf7+ {[%clk 0:00:35]}  Kxf7 {[%clk 0:00:19]} 29. g3 {[%clk 0:00:29]}  Qd5 {[%clk 0:00:16]} 30. Qb3 {[%clk 0:00:16]}  Qxb3 {[%clk 0:00:16]} 31. Rxb3 {[%clk 0:00:17]}  Rc7 {[%clk 0:00:17]} 32. Kf1 {[%clk 0:00:11]}  Ke6 {[%clk 0:00:16]} 33. Ke2 {[%clk 0:00:11]}  Kd5 {[%clk 0:00:15]} 34. Kd3 {[%clk 0:00:11]}  e6 {[%clk 0:00:15]} 35. Rb8 {[%clk 0:00:08]}  g5 {[%clk 0:00:14]} 36. Rf8 {[%clk 0:00:07]}  Be7 {[%clk 0:00:13]} 37. Re8 {[%clk 0:00:07]}  gxf4 {[%clk 0:00:08]} 38. gxf4 {[%clk 0:00:06]}  Bd6 {[%clk 0:00:05]} 39. Ne5 {[%clk 0:00:06]}  c5 {[%clk 0:00:03]} 40. Rd8 {[%clk 0:00:02]}  c4+ {[%clk 0:00:03]} 41. Nxc4 {[%clk 0:00:02]} 1-0


[Site "https://www.chess.com"]

[Event "Titled Tuesday Blitz April 19 Late 2022"]
[White "Lopez Idarraga, Daniel Eduardo"]
[Black "Ozdemir, Serhan Berat"]
[WhiteFideId "4405501"]
[BlackFideId "6374611"]
[WhiteElo "2055"]
[BlackElo "1920"]
[Result "0-1"]
[Round "07"]
[TimeControl "180+1"]
[Date "2022.04.19"]
[WhiteClock "0:01:46"]
[BlackClock "0:00:19"]

1. d4 {[%clk 0:02:58]}  Nf6 {[%clk 0:02:47]} 2. Nf3 {[%clk 0:02:58]}  g6 {[%clk 0:02:45]} 3. Nc3 {[%clk 0:02:57]}  d5 {[%clk 0:02:44]} 4. Bf4 {[%clk 0:02:56]}  Bg7 {[%clk 0:02:43]} 5. e3 {[%clk 0:02:57]}  O-O {[%clk 0:02:43]} 6. Ne5 {[%clk 0:02:58]}  c5 {[%clk 0:02:40]} 7. Qd2 {[%clk 0:02:57]}  Nc6 {[%clk 0:02:39]} 8. O-O-O {[%clk 0:02:57]}  Qa5 {[%clk 0:02:18]} 9. Kb1 {[%clk 0:02:56]}  cxd4 {[%clk 0:01:49]} 10. exd4 {[%clk 0:02:54]}  Bf5 {[%clk 0:01:48]} 11. f3 {[%clk 0:02:53]}  Nb4 {[%clk 0:01:43]} 12. Nd3 {[%clk 0:02:50]}  Rac8 {[%clk 0:01:38]} 13. a3 {[%clk 0:02:46]}  Nc6 {[%clk 0:01:18]} 14. g4 {[%clk 0:02:44]}  Be6 {[%clk 0:01:13]} 15. Ne5 {[%clk 0:02:43]}  Nxe5 {[%clk 0:01:08]} 16. Bxe5 {[%clk 0:02:44]}  Rc6 {[%clk 0:01:08]} 17. h4 {[%clk 0:02:41]}  Rfc8 {[%clk 0:01:08]} 18. Bxf6 {[%clk 0:01:59]}  Bxf6 {[%clk 0:01:05]} 19. Ne4 {[%clk 0:01:59]}  Qa4 {[%clk 0:00:36]} 20. Nxf6+ {[%clk 0:01:58]}  exf6 {[%clk 0:00:36]} 21. Bd3 {[%clk 0:01:59]}  Rb6 {[%clk 0:00:21]} 22. Ka2 {[%clk 0:01:47]}  Qxd4 {[%clk 0:00:20]} 23. h5 {[%clk 0:01:46]}  Qxb2# {[%clk 0:00:19]} 0-1


[Site "https://www.chess.com"]

[Event "Titled Tuesday Blitz April 19 Late 2022"]
[White "Martic, Ivan"]
[Black "Miszler, Levente"]
[WhiteFideId "929301"]
[BlackFideId "763276"]
[WhiteElo "2317"]
[BlackElo "1966"]
[Result "1-0"]
[Round "07"]
[TimeControl "180+1"]
[Date "2022.04.19"]
[WhiteClock "0:01:33"]
[BlackClock "0:01:13"]

1. e4 {[%clk 0:03:00]}  e6 {[%clk 0:03:00]} 2. d4 {[%clk 0:03:00]}  d5 {[%clk 0:03:00]} 3. e5 {[%clk 0:03:00]}  c5 {[%clk 0:03:00]} 4. c3 {[%clk 0:03:01]}  Nc6 {[%clk 0:03:01]} 5. Nf3 {[%clk 0:03:01]}  Bd7 {[%clk 0:03:02]} 6. Be2 {[%clk 0:03:01]}  f6 {[%clk 0:03:01]} 7. O-O {[%clk 0:03:01]}  fxe5 {[%clk 0:03:01]} 8. Nxe5 {[%clk 0:03:02]}  Nxe5 {[%clk 0:03:00]} 9. dxe5 {[%clk 0:03:03]}  Qc7 {[%clk 0:03:01]} 10. c4 {[%clk 0:03:01]}  Bc6 {[%clk 0:02:54]} 11. Nc3 {[%clk 0:02:51]}  d4 {[%clk 0:02:53]} 12. Nb5 {[%clk 0:02:46]}  Bxb5 {[%clk 0:02:53]} 13. cxb5 {[%clk 0:02:47]}  g6 {[%clk 0:02:51]} 14. Bg4 {[%clk 0:02:43]}  Bg7 {[%clk 0:02:40]} 15. Bxe6 {[%clk 0:02:42]}  Ne7 {[%clk 0:02:39]} 16. f4 {[%clk 0:02:38]}  Rd8 {[%clk 0:02:28]} 17. Qd3 {[%clk 0:02:31]}  c4 {[%clk 0:02:26]} 18. Bxc4 {[%clk 0:02:25]}  Nf5 {[%clk 0:02:17]} 19. Bd2 {[%clk 0:02:23]}  Ne3 {[%clk 0:02:01]} 20. Rfc1 {[%clk 0:02:22]}  Qb6 {[%clk 0:01:56]} 21. a4 {[%clk 0:02:15]}  Nxc4 {[%clk 0:01:53]} 22. Rxc4 {[%clk 0:02:16]}  O-O {[%clk 0:01:50]} 23. Rac1 {[%clk 0:02:07]}  g5 {[%clk 0:01:43]} 24. g3 {[%clk 0:02:02]}  gxf4 {[%clk 0:01:43]} 25. gxf4 {[%clk 0:02:01]}  Qe6 {[%clk 0:01:40]} 26. Rc7 {[%clk 0:01:55]}  Kh8 {[%clk 0:01:35]} 27. Qe4 {[%clk 0:01:41]}  Rg8 {[%clk 0:01:35]} 28. Kh1 {[%clk 0:01:39]}  Qh3 {[%clk 0:01:28]} 29. Rg1 {[%clk 0:01:35]}  Bh6 {[%clk 0:01:13]} 30. Qxh7# {[%clk 0:01:33]} 1-0


[Site "https://www.chess.com"]